fUST/lending_fUST_20250614
["ID","MTS","AMOUNT","RATE_DAILY","PERIOD"]
[365700070,1749834445108,-828.28,0.00021917,4]
[365700071,1749834445130,-460.0,0.00021917,4]
[365700072,1749834445152,-1259.83,0.00021917,4]
[365700073,1749834445174,-2982.31,0.00021917,4]
[365700074,1749834445195,-460.0,0.00021917,4]
[365700075,1749834445215,-460.0,0.00021917,4]
[365700076,1749834445235,-460.0,0.00021917,4]
[365700077,1749834445255,-500.0,0.00021917,2]
[365700078,1749834445277,-460.0,0.00021917,4]
[365700079,1749834445297,-460.0,0.00021917,4]
[365700080,1749834445318,-460.0,0.00021917,4]
[365700081,1749834445338,-754.09,0.00021917,4]
[365700082,1749834445360,-1075.88,0.00021917,4]
[365700083,1749834445386,-2674.28,0.00021917,4]
[365700084,1749834445485,-460.0,0.00021917,4]
[365700085,1749834445521,-561.33,0.00021917,4]
[365700086,1749834445543,-524.21,0.00021917,4]
[365700087,1749834445566,-460.0,0.00021917,4]
[365700088,1749834445589,-1978.01,0.00021917,4]
[365700089,1749834445614,-597.13,0.00021917,4]
[365700090,1749834445638,-460.0,0.00021917,4]
[365700091,1749834445661,-460.0,0.00021917,4]
[365700092,1749834445683,-460.0,0.00021917,4]
[365700093,1749834445708,-2115.81,0.00021917,4]
[365700094,1749834445731,-1301.67,0.00021917,4]
[365700095,1749834445754,-4644.78,0.00021917,4]
[365700096,1749834445776,-460.0,0.00021917,4]
[365700097,1749834445797,-460.0,0.00021917,4]
[365700098,1749834445822,-2036.7,0.00021917,4]
[365700099,1749834445845,-2948.04,0.00021917,4]
[365700100,1749834445868,-749.61,0.00021917,4]
[365700101,1749834445891,-460.0,0.00021917,4]
[365700102,1749834445912,-460.0,0.00021917,4]
[365700103,1749834445934,-460.0,0.00021917,4]
[365700104,1749834445955,-1705.47,0.00021917,4]
[365700105,1749834445977,-2608.35,0.00021917,4]
[365700106,1749834445998,-460.0,0.00021917,4]
[365700107,1749834446019,-1186.96,0.00021917,4]
[365700108,1749834446040,-194.48520834,0.00021917,4]
[365700109,1749834446060,-153.0,0.00021918,2]
[365700110,1749834446079,-153.0,0.00021918,2]
[365700111,1749834446100,-153.0,0.00021918,2]
[365700112,1749834446122,-153.0,0.00021918,2]
[365700113,1749834446141,-153.0,0.00021918,2]
[365700114,1749834446160,-153.0,0.00021918,2]
[365700115,1749834446182,-153.0,0.00021918,2]
[365700116,1749834446202,-153.0,0.00021918,2]
[365700117,1749834446222,-153.0,0.00021918,2]
[365700118,1749834446241,-153.0,0.00021918,2]
[365700119,1749834446261,-153.0,0.00021918,2]
[365700120,1749834446280,-153.0,0.00021918,2]
[365700121,1749834446300,-153.0,0.00021918,2]
[365700122,1749834446319,-153.0,0.00021918,2]
[365700123,1749834446339,-153.0,0.00021918,2]
[365700124,1749834446359,-153.0,0.00021918,2]
[365700125,1749834446380,-153.0,0.00021918,2]
[365700126,1749834446401,-153.0,0.00021918,2]
[365700127,1749834446423,-153.0,0.00021918,2]
[365700128,1749834446442,-153.0,0.00021918,2]
[365700129,1749834446462,-153.0,0.00021918,2]
[365700130,1749834446482,-153.0,0.00021918,2]
[365700131,1749834446503,-153.0,0.00021918,2]
[365700132,1749834446524,-153.0,0.00021918,2]
[365700133,1749834446545,-153.0,0.00021918,2]
[365700134,1749834446565,-153.0,0.00021918,2]
[365700135,1749834446585,-153.0,0.00021918,2]
[365700136,1749834446606,-5000.0,0.00021939,2]
[365700137,1749834446634,-1000.0,0.00021989,2]
[365700138,1749834446657,-215.0738,0.00021994,2]
[365700139,1749834446678,-151.0,0.00021998,7]
[365700140,1749834446702,-151.0,0.00021998,7]
[365700141,1749834446724,-151.0,0.00021998,7]
[365700142,1749834446746,-182.202556,0.00021998,7]
[365700143,1749834446767,-151.0,0.00022,7]
[365700144,1749834446787,-151.0,0.00022,7]
[365700145,1749834446807,-151.0,0.00022,7]
[365700146,1749834446834,-659.77294602,0.00022003,6]
[365700147,1749834446855,-5000.0,0.00022078,2]
[365700148,1749834446876,-213.24139183,0.00022096,2]
[365700149,1749834446897,-160.0,0.00022096,2]
[365700150,1749834446918,-160.0,0.00022096,2]
[365700151,1749834446940,-160.0,0.00022096,2]
[365700152,1749834446958,-160.0,0.00022096,2]
[365700153,1749834446978,-229.78555783,0.00022096,2]
[365700154,1749834446999,-844.94977992,0.00022096,2]
[365700155,1749834447021,-398.65357407,0.000221,2]
[365700156,1749834447048,-659.77294602,0.00022107,6]
[365700157,1749834447068,-365.2062734,0.0002211,2]
[365700158,1749834447087,-365.2062734,0.0002211,2]
[365700159,1749834447188,-1287.0,0.00022145,2]
[365700160,1749834447209,-558.23763622,0.00022168,2]
[365700161,1749834447229,-1269.05763184,0.00022168,2]
[365700162,1749834447250,-918.88861248,0.00022168,2]
[365700163,1749834447270,-1032.77,0.00022181,10]
[365700164,1749834447291,-151.0,0.00022191,7]
[365700165,1749834447311,-151.0,0.00022191,7]
[365700166,1749834447332,-151.0,0.00022191,7]
[365700167,1749834447354,-460.0,0.00022191,4]
[365700168,1749834447377,-460.0,0.00022191,4]
[365700169,1749834447398,-460.0,0.00022191,4]
[365700170,1749834447420,-560.05,0.00022191,4]
[365700171,1749834447442,-460.0,0.00022191,4]
[365700172,1749834447464,-460.0,0.00022191,4]
[365700173,1749834447486,-511.84,0.00022191,2]
[365700174,1749834447507,-460.0,0.00022191,4]
[365700175,1749834447528,-460.0,0.00022191,4]
[365700176,1749834447551,-828.28,0.00022191,4]
[365700177,1749834447575,-1259.83,0.00022191,4]
[365700178,1749834447598,-2982.31,0.00022191,4]
[365700179,1749834447625,-460.0,0.00022191,4]
[365700180,1749834447649,-460.0,0.00022191,4]
[365700181,1749834447672,-460.0,0.00022191,4]
[365700182,1749834447694,-460.0,0.00022191,4]
[365700183,1749834447720,-460.0,0.00022191,4]
[365700184,1749834447742,-460.0,0.00022191,4]
[365700185,1749834447765,-460.0,0.00022191,4]
[365700186,1749834447787,-754.09,0.00022191,4]
[365700187,1749834447810,-1075.88,0.00022191,4]
[365700188,1749834447834,-2674.28,0.00022191,4]
[365700189,1749834447856,-561.33,0.00022191,4]
[365700190,1749834447877,-460.0,0.00022191,4]
[365700191,1749834447900,-524.21,0.00022191,4]
[365700192,1749834447922,-460.0,0.00022191,4]
[365700193,1749834447945,-1978.01,0.00022191,4]
[365700194,1749834447967,-460.0,0.00022191,4]
[365700195,1749834448003,-597.13,0.00022191,4]
[365700196,1749834448035,-460.0,0.00022191,4]
[365700197,1749834448070,-460.0,0.00022191,4]
[365700198,1749834448105,-2115.81,0.00022191,4]
[365700199,1749834448139,-1301.67,0.00022191,4]
[365700200,1749834448174,-4644.78,0.00022191,4]
[365700201,1749834448204,-460.0,0.00022191,4]
[365700202,1749834448236,-460.0,0.00022191,4]
[365700203,1749834448271,-2036.7,0.00022191,4]
[365700204,1749834448304,-2948.04,0.00022191,4]
[365700205,1749834448332,-155.0,0.00022191,2]
[365700206,1749834448366,-749.61,0.00022191,4]
[365700207,1749834448398,-390.25,0.00022191,4]
[365700208,1749834448427,-460.0,0.00022191,4]
[365700209,1749834448457,-460.0,0.00022191,4]
[365700210,1749834448488,-1705.47,0.00022191,4]
[365700211,1749834448519,-2608.35,0.00022191,4]
[365700212,1749834448547,-460.0,0.00022191,4]
[365700213,1749834448577,-1186.96,0.00022191,4]
[365700214,1749834448615,-659.77294602,0.0002221,6]
[365700215,1749834448646,-1287.0,0.00022247,2]
[365700216,1749834448683,-659.77294602,0.00022314,7]
[365700217,1749834448713,-2259.429163,0.00022403,3]
[365700218,1749834448741,-298.0,0.00022405,2]
[365700219,1749834448777,-659.77294602,0.00022417,7]
[365700220,1749834448807,-162.74,0.00022464,2]
[365700221,1749834448835,-151.0,0.00022465,7]
[365700222,1749834448869,-151.0,0.00022465,7]
[365700223,1749834448891,-151.0,0.00022465,7]
[365700224,1749834448914,-460.0,0.00022465,4]
[365700225,1749834448935,-460.0,0.00022465,4]
[365700226,1749834448957,-460.0,0.00022465,4]
[365700227,1749834448981,-560.05,0.00022465,4]
[365700228,1749834449009,-460.0,0.00022465,4]
[365700229,1749834449032,-460.0,0.00022465,4]
[365700230,1749834449226,-511.84,0.00022465,2]
[365700231,1749834449263,-460.0,0.00022465,4]
[365700232,1749834449285,-554.99670848,0.00022465,4]
[365700233,1749834449309,-828.28,0.00022465,4]
[365700234,1749834449333,-1259.83,0.00022465,4]
[365700235,1749834449355,-2982.31,0.00022465,4]
[365700236,1749834449378,-460.0,0.00022465,4]
[365700237,1749834449401,-460.0,0.00022465,4]
[365700238,1749834449424,-460.0,0.00022465,4]
[365700239,1749834449447,-460.0,0.00022465,4]
[365700240,1749834449468,-500.0,0.00022465,2]
[365700241,1749834449493,-460.0,0.00022465,4]
[365700242,1749834449516,-460.0,0.00022465,4]
[365700243,1749834449540,-460.0,0.00022465,4]
[365700244,1749834449563,-1075.88,0.00022465,4]
[365700245,1749834449584,-754.09,0.00022465,4]
[365700246,1749834449609,-2674.28,0.00022465,4]
[365700247,1749834449636,-561.33,0.00022465,4]
[365700248,1749834449659,-460.0,0.00022465,4]
[365700249,1749834449682,-524.21,0.00022465,4]
[365700250,1749834449706,-460.0,0.00022465,4]
[365700251,1749834449728,-1978.01,0.00022465,4]
[365700252,1749834449750,-460.0,0.00022465,4]
[365700253,1749834449774,-597.13,0.00022465,4]
[365700254,1749834449796,-460.0,0.00022465,4]
[365700255,1749834449818,-460.0,0.00022465,4]
[365700256,1749834449841,-2115.81,0.00022465,4]
[365700257,1749834449865,-1301.67,0.00022465,4]
[365700258,1749834449888,-4644.78,0.00022465,4]
[365700259,1749834449908,-460.0,0.00022465,4]
[365700260,1749834449929,-437.32674212,0.00022465,4]
[365700261,1749834449951,-2036.7,0.00022465,4]
[365700262,1749834449973,-2948.04,0.00022465,4]
[365700263,1749834449996,-749.61,0.00022465,4]
[365700264,1749834450017,-460.0,0.00022465,4]
[365700265,1749834450039,-460.0,0.00022465,4]
[365700266,1749834450060,-1705.47,0.00022465,4]
[365700267,1749834450082,-2608.35,0.00022465,4]
[365700268,1749834450102,-460.0,0.00022465,4]
[365700269,1749834450124,-1186.96,0.00022465,4]
[365700270,1749834450145,-500.0,0.00022466,2]
[365700271,1749834450166,-300.91788657,0.00022466,2]
[365700272,1749834450187,-500.0,0.00022466,2]
[365700273,1749834450208,-500.0,0.00022466,2]
[365700274,1749834450229,-500.0,0.00022466,2]
[365700275,1749834450249,-500.0,0.00022466,2]
[365700276,1749834450270,-500.0,0.00022466,2]
[365700277,1749834450291,-500.0,0.00022466,2]
[365700278,1749834450312,-176.9539549,0.00022521,2]
[365700279,1749834450334,-158.8399287,0.00022521,2]
[365700280,1749834450355,-153.0,0.00022521,2]
[365700281,1749834450377,-153.0,0.00022521,2]
[365700282,1749834450397,-158.8399287,0.00022521,2]
[365700283,1749834450418,-176.9539549,0.00022521,2]
[365700284,1749834450438,-153.0,0.00022521,2]
[365700285,1749834450458,-153.0,0.00022521,2]
[365700286,1749834450479,-158.8399287,0.00022521,2]
[365700287,1749834450498,-153.0,0.00022521,2]
[365700288,1749834450518,-153.0,0.00022521,2]
[365700289,1749834450538,-573.6747916,0.00022521,2]
[365700290,1749834450560,-176.9539549,0.00022521,2]
[365700291,1749834450581,-176.9539549,0.00022521,2]
[365700292,1749834450603,-573.6747916,0.00022521,2]
[365700293,1749834450629,-158.8399287,0.00022521,2]
[365700294,1749834450649,-176.9539549,0.00022521,2]
[365700295,1749834450674,-158.8399287,0.00022521,2]
[365700296,1749834450695,-1147.3495832,0.00022521,2]
[365700297,1749834450717,-153.0,0.00022521,2]
[365700298,1749834450740,-573.6747916,0.00022521,2]
[365700299,1749834450760,-176.9539549,0.00022521,2]
[365700300,1749834450783,-173.7064264,0.00022521,2]
[365700301,1749834450803,-153.0,0.00022521,2]
[365700302,1749834450824,-573.6747916,0.00022521,2]
[365700303,1749834450845,-379.1997668,0.00022521,2]
[365700304,1749834450866,-306.0,0.00022521,2]
[365700305,1749834450887,-153.0,0.00022521,2]
[365700306,1749834450906,-153.0,0.00022521,2]
[365700307,1749834450926,-153.0,0.00022521,2]
[365700308,1749834450948,-153.0,0.00022521,2]
[365700309,1749834450968,-311.5050251,0.00022521,2]
[365700310,1749834450997,-659.77294602,0.00022521,7]
[365700311,1749834451018,-1500.0,0.00022537,2]
[365700312,1749834451040,-237.0,0.00022545,2]
[365700313,1749834451060,-420.0,0.00022553,2]
[365700314,1749834451081,-5025.0,0.00022567,2]
[365700315,1749834451102,-366.0,0.00022592,2]
[365700316,1749834451129,-659.77294602,0.00022624,7]
[365700317,1749834451150,-151.0,0.00022626,7]
[365700318,1749834451171,-151.0,0.00022626,7]
[365700319,1749834451192,-151.0,0.00022626,7]
[365700320,1749834451212,-213.24139183,0.00022626,7]
[365700321,1749834451232,-5000.0,0.00022626,2]
[365700322,1749834451253,-1287.0,0.00022637,2]
[365700323,1749834451273,-25691.35595786,0.00022639,2]
[365700324,1749834451294,-398.65357407,0.00022652,2]
[365700325,1749834451314,-3000.0,0.000227,2]
[365700326,1749834451334,-3000.0,0.0002271,2]
[365700327,1749834451355,-151.0,0.0002271,7]
[365700328,1749834451375,-153.129015,0.0002271,7]
[365700329,1749834451395,-3000.0,0.0002272,2]
[365700330,1749834451415,-160.0,0.00022727,2]
[365700331,1749834451442,-659.77294602,0.00022728,7]
[365700332,1749834451463,-835.28007164,0.00022729,2]
[365700333,1749834451485,-3000.0,0.0002273,2]
[365700334,1749834451507,-320.223891,0.00022739,7]
[365700335,1749834451530,-320.223891,0.00022739,7]
[365700336,1749834451551,-151.0,0.00022739,7]
[365700337,1749834451572,-151.0,0.00022739,7]
[365700338,1749834451594,-183.689755,0.00022739,7]
[365700339,1749834451620,-460.0,0.00022739,4]
[365700340,1749834451645,-151.0,0.00022739,2]
[365700341,1749834451669,-460.0,0.00022739,4]
[365700342,1749834451692,-460.0,0.00022739,4]
[365700343,1749834451715,-560.05,0.00022739,4]
[365700344,1749834451737,-460.0,0.00022739,4]
[365700345,1749834451760,-460.0,0.00022739,4]
[365700346,1749834451782,-511.84,0.00022739,2]
[365700347,1749834451804,-460.0,0.00022739,4]
[365700348,1749834451827,-151.0,0.00022739,7]
[365700349,1749834451848,-844.94977992,0.00022739,7]
[365700350,1749834451871,-154.881614,0.00022739,7]
[365700351,1749834451896,-154.881614,0.00022739,7]
[365700352,1749834452000,-828.28,0.00022739,4]
[365700353,1749834452045,-1259.83,0.00022739,4]
[365700354,1749834452068,-151.0,0.00022739,7]
[365700355,1749834452092,-2982.31,0.00022739,4]
[365700356,1749834452114,-460.0,0.00022739,4]
[365700357,1749834452137,-193.166805,0.00022739,7]
[365700358,1749834452160,-460.0,0.00022739,4]
[365700359,1749834452182,-460.0,0.00022739,4]
[365700360,1749834452203,-460.0,0.00022739,4]
[365700361,1749834452224,-151.0,0.00022739,7]
[365700362,1749834452247,-460.0,0.00022739,4]
[365700363,1749834452268,-151.0,0.00022739,7]
[365700364,1749834452290,-460.0,0.00022739,4]
[365700365,1749834452312,-460.0,0.00022739,4]
[365700366,1749834452336,-1075.88,0.00022739,4]
[365700367,1749834452358,-754.09,0.00022739,4]
[365700368,1749834452384,-2674.28,0.00022739,4]
[365700369,1749834452405,-12531.02669373,0.00022739,7]
[365700370,1749834452427,-460.0,0.00022739,4]
[365700371,1749834452449,-561.33,0.00022739,4]
[365700372,1749834452471,-151.0,0.00022739,7]
[365700373,1749834452493,-151.0,0.00022739,7]
[365700374,1749834452515,-524.21,0.00022739,4]
[365700375,1749834452537,-460.0,0.00022739,4]
[365700376,1749834452560,-1978.01,0.00022739,4]
[365700377,1749834452582,-209.08376477,0.00022739,4]
[365700378,1749834452605,-597.13,0.00022739,4]
[365700379,1749834452634,-460.0,0.00022739,4]
[365700380,1749834452655,-164.6613268,0.00022739,3]
[365700381,1749834452678,-1745.0,0.00022739,3]
[365700382,1749834452705,-1745.0,0.00022739,3]
[365700383,1749834452726,-1745.0,0.00022739,3]
[365700384,1749834452750,-460.0,0.00022739,4]
[365700385,1749834452773,-1745.0,0.00022739,3]
[365700386,1749834452795,-1745.0,0.00022739,3]
[365700387,1749834452816,-1745.0,0.00022739,3]
[365700388,1749834452838,-1745.0,0.00022739,3]
[365700389,1749834452860,-1745.0,0.00022739,3]
[365700390,1749834452885,-2115.81,0.00022739,4]
[365700391,1749834452906,-1745.0,0.00022739,3]
[365700392,1749834452927,-1745.0,0.00022739,3]
[365700393,1749834452949,-1745.0,0.00022739,3]
[365700394,1749834452970,-1745.0,0.00022739,3]
[365700395,1749834452991,-1745.0,0.00022739,3]
[365700396,1749834453013,-1745.0,0.00022739,3]
[365700397,1749834453036,-1745.0,0.00022739,3]
[365700398,1749834453062,-1745.0,0.00022739,3]
[365700399,1749834453085,-1745.0,0.00022739,3]
[365700400,1749834453108,-1745.0,0.00022739,3]
[365700401,1749834453131,-1745.0,0.00022739,3]
[365700402,1749834453153,-1745.0,0.00022739,3]
[365700403,1749834453174,-1745.0,0.00022739,3]
[365700404,1749834453196,-1723.0,0.00022739,3]
[365700405,1749834453221,-1301.67,0.00022739,4]
[365700406,1749834453244,-151.0,0.00022739,7]
[365700407,1749834453265,-160.0,0.00022739,7]
[365700408,1749834453290,-4644.78,0.00022739,4]
[365700409,1749834453314,-460.0,0.00022739,4]
[365700410,1749834453337,-3168.943934,0.00022739,2]
[365700411,1749834453359,-3168.943934,0.00022739,2]
[365700412,1749834453386,-2036.7,0.00022739,4]
[365700413,1749834453413,-2948.04,0.00022739,4]
[365700414,1749834453435,-151.0,0.00022739,7]
[365700415,1749834453460,-749.61,0.00022739,4]
[365700416,1749834453484,-151.0,0.00022739,7]
[365700417,1749834453511,-460.0,0.00022739,4]
[365700418,1749834453540,-460.0,0.00022739,4]
[365700419,1749834453566,-1705.47,0.00022739,4]
[365700420,1749834453593,-2608.35,0.00022739,4]
[365700421,1749834453619,-611.854662,0.00022739,7]
[365700422,1749834453647,-460.0,0.00022739,4]
[365700423,1749834453673,-611.854662,0.00022739,7]
[365700424,1749834453701,-1186.96,0.00022739,4]
[365700425,1749834453729,-3000.0,0.0002274,2]
[365700426,1749834453758,-742.14,0.00022744,2]
[365700427,1749834453783,-3000.0,0.0002275,2]
[365700428,1749834453809,-2243.0,0.00022753,7]
[365700429,1749834453834,-3000.0,0.0002276,2]
[365700430,1749834453859,-3000.0,0.0002277,2]
[365700431,1749834453885,-3000.0,0.0002278,2]
[365700432,1749834453910,-3000.0,0.0002279,2]
[365700433,1749834453934,-151.0,0.000228,7]
[365700434,1749834453960,-3000.0,0.000228,2]
[365700435,1749834453985,-213.24139183,0.000228,3]
[365700436,1749834454009,-844.94977992,0.000228,3]
[365700437,1749834454035,-12531.02669373,0.000228,3]
[365700438,1749834454062,-160.0,0.000228,3]
[365700439,1749834454092,-424.32678023,0.000228,2]
[365700440,1749834454118,-160.0,0.000228,2]
[365700441,1749834454150,-12531.02669373,0.000228,2]
[365700442,1749834454177,-3000.0,0.0002281,2]
[365700443,1749834454203,-3000.0,0.0002282,2]
[365700444,1749834454229,-3000.0,0.0002283,2]
[365700445,1749834454254,-437.0,0.0002283,2]
[365700446,1749834454277,-151.0,0.00022831,7]
[365700447,1749834454304,-175.885823,0.00022831,7]
[365700448,1749834454327,-175.885823,0.00022831,7]
[365700449,1749834454351,-151.0,0.00022831,7]
[365700450,1749834454378,-151.0,0.00022831,7]
[365700451,1749834454407,-659.77294602,0.00022831,8]
[365700452,1749834454430,-3000.0,0.0002284,2]
[365700453,1749834454453,-742.14,0.00022844,2]
[365700454,1749834454477,-3000.0,0.0002285,2]
[365700455,1749834454501,-2243.0,0.00022857,7]
[365700456,1749834454526,-3000.0,0.0002286,2]
[365700457,1749834454550,-3000.0,0.0002287,2]
[365700458,1749834454574,-3000.0,0.0002288,2]
[365700459,1749834454598,-342.989413,0.00022886,7]
[365700460,1749834454632,-342.989413,0.00022886,7]
[365700461,1749834454659,-266.125263,0.00022886,7]
[365700462,1749834454683,-266.125263,0.00022886,7]
[365700463,1749834454709,-3000.0,0.0002289,2]
[365700464,1749834454732,-5688.0807565,0.000229,2]
[365700465,1749834455839,200.0,0.00024573,120]
[365700466,1749834509918,500.0,0.00024657,120]
[365700467,1749834530003,500.0,0.00024657,120]
[365700468,1749834531173,150.0,0.00024961,90]
[365700469,1749834546792,500.0,0.00024657,120]
[365700470,1749834555304,500.0,0.00024657,120]
[365700471,1749834563678,500.0,0.00024657,120]
[365700472,1749834571143,500.0,0.00024657,120]
[365700473,1749834631203,200.0,0.00024507,120]
[365700512,1749834632104,-257.23253091,0.0002064,2]
[365700514,1749834632114,-76.10020244,0.00020964,2]
[365700517,1749834632127,-423.89979756,0.00020964,2]
[365700519,1749834632137,-199.32678707,0.00020995,2]
[365700521,1749834632146,-160.0,0.00021094,2]
[365700523,1749834632156,-26.54533982,0.00021094,2]
[365700535,1749834632262,-273.45466018,0.00021094,2]
[365700537,1749834632274,-300.0,0.00021094,2]
[365700539,1749834632284,-300.0,0.00021094,2]
[365700541,1749834632293,-300.0,0.00021094,2]
[365700543,1749834632303,-518.80545207,0.00021095,4]
[365700545,1749834632312,-460.0,0.00021095,4]
[365700547,1749834632322,-460.0,0.00021095,4]
[365700549,1749834632332,-460.0,0.00021095,4]
[365700551,1749834632342,-431.00901855,0.00021095,4]
[365700553,1749834632352,-460.0,0.00021095,4]
[365700555,1749834632361,-390.0,0.00021095,4]
[365700557,1749834632372,-460.0,0.00021095,4]
[365700559,1749834632382,-370.0,0.00021095,4]
[365700561,1749834632391,-416.29435906,0.00021095,4]
[365700563,1749834632401,-431.91988334,0.00021095,4]
[365700565,1749834632411,-460.0,0.00021095,4]
[365700567,1749834632421,-460.0,0.00021095,4]
[365700569,1749834632430,-420.0,0.00021095,4]
[365700571,1749834632439,-2258.13,0.00021095,4]
[365700573,1749834632449,-410.0,0.00021095,4]
[365700575,1749834632459,-460.0,0.00021095,4]
[365700578,1749834632468,-460.0,0.00021095,4]
[365700580,1749834632478,-460.0,0.00021095,4]
[365700582,1749834632488,-460.0,0.00021095,4]
[365700584,1749834632498,-410.0,0.00021095,4]
[365700586,1749834632507,-572.84,0.00021095,4]
[365700588,1749834632517,-460.0,0.00021095,4]
[365700590,1749834632527,-432.06933431,0.00021095,4]
[365700592,1749834632537,-460.0,0.00021095,4]
[365700594,1749834632547,-460.0,0.00021095,4]
[365700596,1749834632557,-430.0,0.00021095,4]
[365700598,1749834632566,-460.0,0.00021095,4]
[365700600,1749834632576,-342.95305357,0.00021095,4]
[365700602,1749834632585,-351.44406114,0.00021095,4]
[365700604,1749834632595,-440.0,0.00021095,4]
[365700606,1749834632604,-2143.51,0.00021095,4]
[365700608,1749834632614,-400.0,0.00021095,4]
[365700610,1749834632624,-460.0,0.00021095,4]
[365700612,1749834632634,-476.29,0.00021095,4]
[365700614,1749834632643,-440.0,0.00021095,4]
[365700616,1749834632653,-400.0,0.00021095,4]
[365700618,1749834632665,-440.0,0.00021095,4]
[365700620,1749834632674,-842.03,0.00021095,4]
[365700622,1749834632683,-460.0,0.00021095,4]
[365700624,1749834632693,-440.0,0.00021095,4]
[365700626,1749834632703,-507.83572784,0.00021095,4]
[365700628,1749834632713,-218.3652818,0.00021095,4]
[365700630,1749834632723,-460.0,0.00021095,4]
[365700632,1749834632732,-460.0,0.00021095,4]
[365700634,1749834632743,-1691.22,0.00021095,4]
[365700636,1749834632753,-460.0,0.00021095,4]
[365700638,1749834632763,-478.0,0.00021095,4]
[365700639,1749834632773,-430.0,0.00021095,4]
[365700642,1749834632783,-440.0,0.00021095,4]
[365700644,1749834632794,-440.0,0.00021095,4]
[365700646,1749834632804,-460.0,0.00021095,4]
[365700647,1749834632813,-460.0,0.00021095,4]
[365700649,1749834632824,-460.0,0.00021095,4]
[365700652,1749834632835,-460.0,0.00021095,4]
[365700654,1749834632845,-440.0,0.00021095,4]
[365700656,1749834632853,-460.0,0.00021095,4]
[365700658,1749834632863,-500.0,0.00021095,4]
[365700660,1749834632872,-500.0,0.00021095,4]
[365700662,1749834632882,-460.0,0.00021095,4]
[365700664,1749834632892,-500.0,0.00021095,4]
[365700666,1749834632902,-430.0,0.00021095,4]
[365700668,1749834632911,-400.0,0.00021095,4]
[365700670,1749834632922,-460.0,0.00021095,4]
[365700671,1749834632931,-440.0,0.00021095,4]
[365700674,1749834632941,-1102.01,0.00021095,4]
[365700676,1749834632951,-808.18,0.00021095,4]
[365700678,1749834632960,-1805.7,0.00021095,4]
[365700680,1749834632969,-3963.42,0.00021095,4]
[365700683,1749834632987,-534.73,0.00021095,4]
[365700684,1749834633001,-460.0,0.00021095,4]
[365700685,1749834633010,-1663.93,0.00021095,4]
[365700686,1749834633020,-460.0,0.00021095,4]
[365700687,1749834633030,-460.0,0.00021095,4]
[365700688,1749834633040,-460.0,0.00021095,4]
[365700689,1749834633050,-420.31015506,0.00021095,4]
[365700690,1749834633060,-460.0,0.00021095,4]
[365700691,1749834633070,-460.0,0.00021095,4]
[365700692,1749834633079,-460.0,0.00021095,4]
[365700693,1749834633088,-613.46,0.00021095,4]
[365700694,1749834633098,-460.0,0.00021095,4]
[365700695,1749834633108,-2088.19,0.00021095,4]
[365700696,1749834633118,-541.52608653,0.00021368,4]
[365700697,1749834633128,-440.0,0.00021368,4]
[365700698,1749834633140,-460.0,0.00021369,4]
[365700699,1749834633150,-460.0,0.00021369,4]